fUSD/lending_fUSD_20240702
["ID","MTS","AMOUNT","RATE_DAILY","PERIOD"]
[330932093,1719946260735,-154.46,0.00022465,4]
[330932094,1719946260749,-500.0,0.00022465,4]
[330932095,1719946260766,-850.94,0.00022465,4]
[330932096,1719946260779,-500.0,0.00022465,4]
[330932097,1719946260791,-500.0,0.00022465,4]
[330932098,1719946260808,-500.0,0.00022465,4]
[330932099,1719946260820,-850.94,0.00022465,4]
[330932100,1719946260832,-500.0,0.00022465,4]
[330932101,1719946260845,-500.0,0.00022465,4]
[330932102,1719946260857,-500.0,0.00022465,4]
[330932103,1719946260871,-850.94,0.00022465,4]
[330932104,1719946260883,-500.0,0.00022465,4]
[330932105,1719946260896,-500.0,0.00022465,4]
[330932106,1719946260908,-475.97978934,0.00022465,4]
[330932107,1719946260957,-38.66021066,0.00022465,4]
[330932108,1719946260970,-500.0,0.00022465,4]
[330932109,1719946260984,-500.0,0.00022465,4]
[330932110,1719946260998,-850.94,0.00022465,4]
[330932111,1719946261010,-500.0,0.00022465,4]
[330932112,1719946261024,-500.0,0.00022465,4]
[330932113,1719946261038,-500.0,0.00022465,4]
[330932114,1719946261050,-500.0,0.00022465,4]
[330932115,1719946261064,-850.94,0.00022465,4]
[330932116,1719946261076,-330.46,0.00022465,4]
[330932117,1719946261089,-140.29553734,0.00022465,4]
[330932118,1719946261107,-359.70446266,0.00022465,4]
[330932119,1719946261120,-500.0,0.00022465,4]
[330932120,1719946261133,-500.0,0.00022465,4]
[330932121,1719946261146,-500.0,0.00022465,4]
[330932122,1719946261158,-500.0,0.00022465,4]
[330932123,1719946261171,-850.94,0.00022465,4]
[330932124,1719946261184,-500.0,0.00022465,4]
[330932125,1719946261196,-500.0,0.00022465,4]
[330932126,1719946261208,-36.60553734,0.00022465,4]
[330932127,1719946261226,-463.39446266,0.00022465,4]
[330932128,1719946261239,-90.17527863,0.00022465,4]
[330932134,1719946396063,19622.36291645,0.00011199,2]
[330932141,1719946632361,7009.52578849,0.00011199,2]
[330932362,1719947432211,-727.05300727,0.00013416,2]
[330932364,1719947432222,-684.82466063,0.00013516,2]
[330932366,1719947432231,-684.82466063,0.00013516,2]
[330932368,1719947432242,-382.1041,0.00018685,2]
[330932371,1719947432251,-155.79468526,0.00018919,2]
[330932374,1719947432261,-186.51762411,0.00018919,2]
[330932377,1719947432270,-368.23328701,0.00018919,2]
[330932378,1719947432279,-501.90706258,0.00018919,2]
[330932380,1719947432288,-251.0225535,0.00018999,2]
[330932382,1719947432298,-155.17578184,0.00018999,2]
[330932384,1719947432307,-467.15,0.00019124,2]
[330932385,1719947432317,-237.43131012,0.00019299,2]
[330932386,1719947432326,-499.99,0.00019452,2]
[330932387,1719947432336,-174.07,0.0002053,2]
[330932388,1719947432345,-250.0,0.00020992,2]
[330932389,1719947432355,-434.29499756,0.00021,2]
[330932390,1719947432367,-815.70500244,0.00021,2]
[330932391,1719947432377,-93.65447866,0.00021001,2]
[330932392,1719947432505,-156.34552134,0.00021001,2]
[330932393,1719947432514,-500.0,0.00021024,2]
[330932394,1719947432524,-255.15,0.00021031,2]
[330932395,1719947432534,-57.96100403,0.0002105,2]
[330932396,1719947432545,-192.03899597,0.0002105,2]
[330932397,1719947432554,-1000.0,0.00021053,2]
[330932398,1719947432563,-160.33,0.00021068,30]
[330932399,1719947432573,-64.41447866,0.00021388,2]
[330932400,1719947432584,-257.16373015,0.00021388,2]
[330932401,1719947432598,-145.57179119,0.00021388,2]
[330932402,1719947432608,-250.0038516,0.000215,2]
[330932403,1719947432617,-300.0,0.00021644,2]
[330932404,1719947432627,-500.0,0.00021917,2]
[330932405,1719947432637,-150.42,0.00021918,2]
[330932406,1719947432646,-634.0,0.00021975,2]
[330932408,1719947432655,-2410.52606072,0.00022064,2]
[330932410,1719947432665,-150.0,0.00022191,2]
[330932412,1719947432675,-1500.0,0.00022191,2]
[330932414,1719947432684,-1500.0,0.00022191,2]
[330932416,1719947432694,-1500.0,0.00022193,2]
[330932417,1719947432704,-150.0,0.00022193,2]
[330932419,1719947432713,-150.0,0.00022194,2]
[330932421,1719947432723,-1500.0,0.00022194,2]
[330932422,1719947432734,-1500.0,0.00022195,2]
[330932423,1719947432742,-150.0,0.00022198,2]
[330932424,1719947432751,-1500.0,0.00022198,2]
[330932425,1719947432761,-150.0,0.00022199,2]
[330932426,1719947432771,-1500.0,0.00022199,2]
[330932427,1719947432780,-1500.0,0.00022199,2]
[330932428,1719947432790,-150.0,0.000222,2]
[330932429,1719947432800,-153.53323174,0.00022201,2]
[330932430,1719947432809,-634.0,0.00022202,2]
[330932431,1719947432819,-150.0,0.00022205,2]
[330932432,1719947432827,-150.0,0.00022206,2]
[330932433,1719947432837,-150.0,0.00022206,2]
[330932434,1719947432846,-150.0,0.00022207,2]
[330932435,1719947432855,-1500.0,0.00022208,2]
[330932436,1719947432864,-1500.0,0.00022209,2]
[330932437,1719947432874,-150.0,0.00022211,2]
[330932438,1719947432883,-150.0,0.00022213,2]
[330932439,1719947432892,-150.0,0.00022213,2]
[330932440,1719947432901,-300.0,0.00022215,2]
[330932441,1719947432911,-150.0,0.00022216,2]
[330932442,1719947432920,-1500.0,0.00022216,2]
[330932443,1719947432929,-150.0,0.00022216,2]
[330932444,1719947432939,-150.0,0.00022219,2]
[330932445,1719947432949,-150.0,0.00022219,2]
[330932446,1719947432958,-308.02257388,0.00022221,2]
[330932447,1719947432966,-1500.0,0.00022222,2]
[330932448,1719947432976,-150.0,0.00022223,2]
[330932449,1719947432985,-300.0,0.00022227,2]
[330932450,1719947432994,-150.0,0.00022228,2]
[330932451,1719947433003,-150.0,0.00022229,2]
[330932452,1719947433013,-1500.0,0.0002223,2]
[330932453,1719947433022,-150.0,0.00022232,2]
[330932454,1719947433031,-1830.0,0.00022233,2]
[330932455,1719947433040,-352.974,0.00022233,2]
[330932456,1719947433049,-1657.0,0.00022233,2]
[330932457,1719947433058,-1274.0,0.00022233,2]
[330932458,1719947433068,-382.927,0.00022233,2]
[330932459,1719947433078,-615.0,0.00022233,2]
[330932460,1719947433091,-2416.0,0.00022233,2]
[330932461,1719947433102,-1304.0,0.00022233,2]
[330932462,1719947433111,-548.0,0.00022233,2]
[330932463,1719947433121,-3205.0,0.00022233,2]
[330932464,1719947433130,-5175.0,0.00022233,2]
[330932465,1719947433141,-291.0,0.00022233,2]
[330932466,1719947433151,-1217.27,0.00022233,2]
[330932467,1719947433161,-38221.0,0.00022233,2]
[330932468,1719947433171,-1198.0,0.00022233,2]
[330932469,1719947433182,-300.0,0.00022234,2]
[330932470,1719947433192,-1500.0,0.00022235,2]
[330932471,1719947433202,-1500.0,0.00022235,2]
[330932472,1719947433211,-150.0,0.00022236,2]
[330932473,1719947433220,-300.0,0.00022242,2]
[330932474,1719947433229,-150.0,0.00022242,2]
[330932475,1719947433239,-150.0,0.00022245,2]
[330932476,1719947433249,-150.0,0.00022246,2]
[330932477,1719947433258,-150.0,0.00022247,2]
[330932478,1719947433267,-150.0,0.00022247,2]
[330932479,1719947433276,-300.0,0.00022249,2]
[330932480,1719947433285,-1500.0,0.00022249,2]
[330932481,1719947433294,-1500.0,0.00022249,2]
[330932482,1719947433303,-21344.23398799,0.0002225,2]
[330932483,1719947433313,-150.0,0.0002225,2]
[330932484,1719947433322,-1500.0,0.0002225,2]
[330932485,1719947433331,-150.0,0.00022251,2]
[330932486,1719947433341,-150.0,0.00022254,2]
[330932487,1719947433351,-150.0,0.00022255,2]
[330932488,1719947433361,-150.0,0.00022255,2]
[330932489,1719947433370,-150.0,0.00022256,2]
[330932490,1719947433381,-150.0,0.0002226,2]
[330932491,1719947433392,-150.0,0.00022261,2]
[330932492,1719947433401,-150.0,0.00022261,2]
[330932493,1719947433413,-150.0,0.00022265,2]
[330932494,1719947433422,-150.0,0.00022265,2]
[330932495,1719947433433,-300.0,0.00022269,2]
[330932496,1719947433443,-150.0,0.00022273,2]
[330932497,1719947433453,-150.0,0.00022274,2]
[330932498,1719947433463,-150.0,0.00022275,2]
[330932499,1719947433474,-1500.0,0.00022277,2]
[330932500,1719947433484,-689.0,0.00022279,2]
[330932501,1719947433494,-150.0,0.00022279,2]
[330932502,1719947433503,-150.0,0.00022279,2]
[330932503,1719947433517,-1500.0,0.00022282,2]
[330932504,1719947433526,-150.0,0.00022283,2]
[330932505,1719947433536,-150.0,0.00022284,2]
[330932506,1719947433546,-500.0,0.00022285,2]
[330932507,1719947433555,-150.0,0.00022286,2]
[330932508,1719947433564,-150.0,0.00022286,2]
[330932509,1719947433573,-150.0,0.00022287,2]
[330932510,1719947433583,-150.0,0.00022287,2]
[330932511,1719947433594,-150.0,0.00022287,2]
[330932512,1719947433605,-150.0,0.00022288,2]
[330932513,1719947433614,-150.0,0.00022289,2]
[330932514,1719947433624,-1500.0,0.00022291,2]
[330932515,1719947433634,-300.0,0.00022292,2]
[330932516,1719947433646,-150.0,0.00022295,2]
[330932517,1719947433656,-150.0,0.00022299,2]
[330932518,1719947433666,-150.0,0.000223,2]
[330932519,1719947433676,-1500.0,0.000223,2]
[330932520,1719947433686,-8727.0,0.000223,2]
[330932521,1719947433695,-150.0,0.00022301,2]
[330932522,1719947433705,-150.0,0.00022301,2]
[330932523,1719947433714,-300.0,0.00022302,2]
[330932524,1719947433724,-150.0,0.00022302,2]
[330932525,1719947433735,-150.0,0.00022302,2]
[330932526,1719947433744,-150.0,0.00022303,2]
[330932527,1719947433754,-150.0,0.00022303,2]
[330932528,1719947433764,-1500.0,0.00022304,2]
[330932529,1719947433774,-150.0,0.00022307,2]
[330932530,1719947433784,-150.0,0.00022309,2]
[330932531,1719947433794,-150.0,0.0002231,2]
[330932532,1719947433803,-150.0,0.00022313,2]
[330932533,1719947433813,-1500.0,0.00022314,2]
[330932534,1719947433822,-150.0,0.00022314,2]
[330932535,1719947433832,-150.0,0.00022315,2]
[330932536,1719947433841,-1500.0,0.00022316,2]
[330932537,1719947433850,-300.0,0.00022318,2]
[330932538,1719947433860,-150.0,0.00022318,2]
[330932539,1719947433870,-150.0,0.00022318,2]
[330932540,1719947433879,-150.0,0.00022319,2]
[330932541,1719947433889,-150.0,0.0002232,2]
[330932542,1719947433898,-300.0,0.00022328,2]
[330932543,1719947433908,-150.0,0.00022329,2]
[330932544,1719947433917,-150.0,0.00022331,2]
[330932545,1719947433927,-150.0,0.00022338,2]
[330932546,1719947433937,-153.53323171,0.00022339,2]
[330932547,1719947433946,-300.0,0.00022342,2]
[330932548,1719947434155,-150.0,0.00022346,2]
[330932549,1719947434165,-150.0,0.00022348,2]
[330932550,1719947434178,-1500.0,0.00022349,2]
[330932551,1719947434188,-150.0,0.0002235,2]
[330932552,1719947434197,-150.0,0.00022352,2]
[330932553,1719947434208,-1500.0,0.00022352,2]
[330932554,1719947434218,-150.0,0.00022353,2]
[330932555,1719947434227,-2500.0,0.00022355,2]
[330932556,1719947434237,-1241.1679,0.00022355,2]
[330932557,1719947434246,-2324.4028,0.00022355,2]
[330932558,1719947434256,-220.02,0.00022356,2]
[330932559,1719947434268,-300.0,0.00022357,2]
[330932560,1719947434277,-150.0,0.0002236,2]
[330932561,1719947434286,-1500.0,0.00022363,2]
[330932562,1719947434296,-1000.0,0.00022365,2]
[330932563,1719947434306,-4234.7796,0.00022365,2]
[330932564,1719947434315,-185.61172509,0.00022365,2]
[330932565,1719947434325,-167.44167065,0.00022365,2]
[330932566,1719947434334,-150.0,0.00022365,2]
[330932567,1719947434344,-1200.74800417,0.00022365,2]
[330932568,1719947434353,-200.14213216,0.00022365,2]
[330932569,1719947434363,-180.07993375,0.00022365,4]
[330932570,1719947434371,-305.60058791,0.00022365,2]
[330932571,1719947434381,-150.0,0.00022366,2]
[330932572,1719947434391,-150.0,0.00022369,2]
[330932573,1719947434400,-1500.0,0.00022369,2]
[330932574,1719947434409,-150.0,0.0002237,2]
[330932575,1719947434419,-150.0,0.00022374,2]
[330932576,1719947434428,-150.0,0.00022377,2]
[330932577,1719947434437,-150.0,0.00022383,2]
[330932578,1719947434446,-150.0,0.00022383,2]
[330932579,1719947434455,-150.0,0.00022384,2]
[330932580,1719947434465,-150.0,0.00022384,2]
[330932581,1719947434475,-150.0,0.00022387,2]
[330932582,1719947434485,-150.0,0.00022387,2]
[330932583,1719947434495,-150.0,0.00022388,2]
[330932584,1719947434504,-150.0,0.0002239,2]
[330932585,1719947434514,-1500.0,0.0002239,2]
[330932586,1719947434523,-150.0,0.00022391,2]
[330932587,1719947434533,-150.0,0.00022396,2]
[330932588,1719947434543,-150.0,0.00022398,2]
[330932589,1719947434553,-150.0,0.00022399,2]
[330932590,1719947434563,-150.0,0.000224,2]
[330932591,1719947434572,-1011.06,0.000224,2]
[330932592,1719947434582,-191.0,0.000224,5]
[330932593,1719947434594,-150.0,0.00022402,2]
[330932594,1719947434604,-1355.22743011,0.00022402,2]
[330932595,1719947434614,-1500.0,0.00022404,2]
[330932596,1719947434624,-150.0,0.00022405,2]
[330932597,1719947434633,-1500.0,0.00022405,2]
[330932598,1719947434642,-150.0,0.00022407,2]
[330932599,1719947434652,-150.0,0.00022409,2]
[330932600,1719947434661,-150.0,0.00022409,2]
[330932601,1719947434670,-150.0,0.00022409,2]
[330932602,1719947434680,-150.0,0.0002241,2]
[330932603,1719947434690,-150.0,0.0002241,2]
[330932604,1719947434699,-150.0,0.00022412,2]
[330932605,1719947434709,-1200.74800406,0.00022413,2]
[330932606,1719947434718,-150.0,0.00022413,2]
[330932607,1719947434727,-1500.0,0.00022415,2]
[330932608,1719947434737,-150.0,0.00022421,2]
[330932609,1719947434747,-150.0,0.00022426,2]
[330932610,1719947434756,-150.0,0.00022427,2]
[330932611,1719947434765,-1500.0,0.00022428,2]
[330932612,1719947434775,-150.0,0.00022428,2]
[330932613,1719947434786,-634.0,0.00022428,2]
[330932614,1719947434796,-150.0,0.00022429,2]
[330932615,1719947434805,-150.0,0.00022429,2]
[330932616,1719947434815,-150.0,0.00022431,2]
[330932617,1719947434824,-150.0,0.00022431,2]
[330932618,1719947434833,-300.0,0.00022433,2]
[330932619,1719947434843,-150.0,0.00022437,2]
[330932620,1719947434852,-500.0,0.00022438,30]
[330932621,1719947434862,-1500.0,0.00022439,2]
[330932622,1719947434871,-1500.0,0.0002244,2]
[330932623,1719947434880,-1500.0,0.0002244,2]
[330932624,1719947434890,-150.0,0.0002244,2]
[330932625,1719947434899,-180.22762838,0.00022441,2]
[330932626,1719947434908,-300.0,0.00022442,2]
[330932627,1719947434918,-300.0,0.00022442,2]
[330932628,1719947434927,-300.0,0.00022442,2]
[330932629,1719947434937,-150.0,0.00022443,2]
[330932630,1719947434947,-150.0,0.00022443,2]
[330932631,1719947434956,-150.0,0.00022443,2]
[330932632,1719947434965,-150.0,0.00022444,2]
[330932633,1719947434975,-150.0,0.00022446,2]
[330932634,1719947434986,-150.0,0.00022447,2]
[330932635,1719947434995,-300.0,0.00022448,2]
[330932636,1719947435005,-300.0,0.00022448,2]
[330932637,1719947435014,-167.62086348,0.00022455,2]
[330932638,1719947435023,-68638.5122743,0.00022455,2]
[330932639,1719947435033,-249.1862283,0.00022455,2]
[330932640,1719947435042,-15695.2002138,0.00022455,2]
[330932641,1719947435052,-4687.9350013,0.00022455,2]
[330932642,1719947435061,-150.0,0.00022455,2]
[330932643,1719947435070,-150.0,0.00022455,2]
[330932644,1719947435079,-150.0,0.00022457,2]
[330932645,1719947435095,-150.0,0.00022459,2]
[330932646,1719947435105,-150.0,0.0002246,2]
[330932647,1719947435115,-150.0,0.0002246,2]
[330932648,1719947435124,-1200.74800406,0.0002246,2]
[330932649,1719947435134,-761.8255345,0.00022464,2]
[330932650,1719947435144,-150.0,0.00022464,2]
[330932651,1719947435153,-1000.0,0.00022464,5]
[330932652,1719947435164,-500.0,0.00022465,4]
[330932653,1719947435174,-506.00839367,0.00022465,2]
[330932654,1719947435183,-534.35721575,0.00022465,2]
[330932655,1719947435193,-500.0,0.00022465,4]
[330932656,1719947435202,-500.0,0.00022465,4]
[330932657,1719947435211,-500.0,0.00022465,4]
[330932658,1719947435221,-500.0,0.00022465,4]
[330932659,1719947435230,-545.05,0.00022465,4]
[330932660,1719947435241,-500.0,0.00022465,4]
[330932661,1719947435251,-500.0,0.00022465,4]
[330932662,1719947435261,-520.43,0.00022465,4]
[330932663,1719947435270,-500.0,0.00022465,4]
[330932664,1719947435279,-611.1035756,0.00022465,4]
[330932665,1719947435289,-500.0,0.00022465,4]
[330932666,1719947435298,-579.85,0.00022465,4]
[330932667,1719947435308,-500.0,0.00022465,4]
[330932668,1719947435317,-500.0,0.00022465,4]
[330932669,1719947435326,-500.0,0.00022465,4]
[330932670,1719947435335,-500.0,0.00022465,4]
[330932671,1719947435345,-216.75,0.00022465,4]
[330932672,1719947435355,-500.0,0.00022465,4]
[330932673,1719947435364,-235.43,0.00022465,4]
[330932674,1719947435373,-500.0,0.00022465,4]
[330932675,1719947435382,-500.0,0.00022465,4]
[330932676,1719947435391,-481.4,0.00022465,4]
[330932677,1719947435401,-500.0,0.00022465,4]
[330932678,1719947435411,-500.0,0.00022465,4]
[330932679,1719947435420,-412.43849009,0.00022465,4]
[330932680,1719947435429,-500.0,0.00022465,4]
[330932681,1719947435439,-500.0,0.00022465,4]
[330932682,1719947435449,-183.44,0.00022465,4]
[330932683,1719947435458,-500.0,0.00022465,4]
[330932684,1719947435467,-500.0,0.00022465,4]
[330932685,1719947435476,-500.0,0.00022465,4]
[330932686,1719947435485,-193.18,0.00022465,4]
[330932687,1719947435494,-500.0,0.00022465,4]
[330932688,1719947435503,-500.0,0.00022465,4]
[330932689,1719947435513,-500.0,0.00022465,4]
[330932690,1719947435522,-174.28,0.00022465,4]
[330932691,1719947435531,-250.0,0.00022465,4]
[330932692,1719947435540,-500.0,0.00022465,4]
[330932693,1719947435550,-151.0,0.00022465,7]
[330932694,1719947435559,-500.0,0.00022465,4]
[330932695,1719947435568,-500.0,0.00022465,4]
[330932696,1719947435577,-500.0,0.00022465,4]
[330932697,1719947435587,-500.0,0.00022465,4]
[330932698,1719947435600,-500.0,0.00022465,4]
[330932699,1719947435610,-500.0,0.00022465,4]
[330932700,1719947435619,-500.0,0.00022465,4]
[330932701,1719947435629,-500.0,0.00022465,4]
[330932702,1719947435639,-500.0,0.00022465,4]
[330932703,1719947435648,-500.0,0.00022465,4]
[330932704,1719947435657,-500.0,0.00022465,4]
[330932705,1719947435666,-203.18,0.00022465,4]
[330932706,1719947435675,-500.0,0.00022465,4]
[330932707,1719947435684,-638.7,0.00022465,4]
[330932708,1719947435694,-632.45847135,0.00022465,4]
[330932709,1719947435704,-500.0,0.00022465,4]
[330932710,1719947435713,-500.0,0.00022465,4]
[330932711,1719947435723,-500.0,0.00022465,4]
[330932712,1719947435732,-500.0,0.00022465,4]
[330932713,1719947435742,-500.0,0.00022465,4]
[330932714,1719947435751,-500.0,0.00022465,4]
[330932715,1719947435760,-500.0,0.00022465,4]
[330932716,1719947435770,-500.0,0.00022465,4]
[330932717,1719947435779,-268.47,0.00022465,4]
[330932718,1719947435789,-500.0,0.00022465,4]
[330932719,1719947435799,-500.0,0.00022465,4]
[330932720,1719947435808,-500.0,0.00022465,4]
[330932721,1719947435818,-500.0,0.00022465,4]
[330932722,1719947435827,-500.0,0.00022465,4]
[330932723,1719947435836,-307.32139566,0.00022465,4]
[330932724,1719947435845,-500.0,0.00022465,4]
[330932725,1719947435855,-500.0,0.00022465,4]
[330932726,1719947435864,-500.0,0.00022465,4]
[330932727,1719947435873,-500.0,0.00022465,4]
[330932728,1719947435883,-500.0,0.00022465,4]
[330932729,1719947435892,-500.0,0.00022465,4]
[330932730,1719947435901,-500.0,0.00022465,4]
[330932731,1719947435911,-500.0,0.00022465,4]
[330932732,1719947435920,-500.0,0.00022465,4]
[330932733,1719947435929,-500.0,0.00022465,4]
[330932734,1719947435939,-290.30838544,0.00022465,4]
[330932735,1719947435948,-500.0,0.00022465,4]
[330932736,1719947435957,-500.0,0.00022465,4]
[330932737,1719947435967,-500.0,0.00022465,4]
[330932738,1719947435976,-500.0,0.00022465,4]
[330932739,1719947435986,-500.0,0.00022465,4]
[330932740,1719947435995,-636.71,0.00022465,4]
[330932741,1719947436005,-500.0,0.00022465,4]
[330932742,1719947436014,-500.0,0.00022465,4]
[330932743,1719947436023,-501.3841607,0.00022465,4]
[330932744,1719947436032,-500.0,0.00022465,4]
[330932745,1719947436042,-500.0,0.00022465,4]
[330932746,1719947436050,-500.0,0.00022465,4]
[330932747,1719947436059,-500.0,0.00022465,4]
[330932748,1719947436069,-500.0,0.00022465,4]
[330932749,1719947436078,-500.0,0.00022465,4]
[330932750,1719947436090,-500.0,0.00022465,4]
[330932751,1719947436101,-500.0,0.00022465,4]
[330932752,1719947436110,-500.0,0.00022465,4]
[330932753,1719947436119,-500.0,0.00022465,4]
[330932754,1719947436128,-500.0,0.00022465,4]
[330932755,1719947436138,-382.46627297,0.00022465,4]
[330932756,1719947436147,-500.0,0.00022465,4]
[330932757,1719947436156,-500.0,0.00022465,4]
[330932758,1719947436167,-500.0,0.00022465,4]
[330932759,1719947436176,-500.0,0.00022465,4]
[330932760,1719947436187,-500.0,0.00022465,4]
[330932761,1719947436196,-500.0,0.00022465,4]
[330932762,1719947436205,-500.0,0.00022465,4]
[330932763,1719947436215,-377.79,0.00022465,4]
[330932764,1719947436224,-500.0,0.00022465,4]
[330932765,1719947436234,-500.0,0.00022465,4]
[330932766,1719947436243,-500.0,0.00022465,4]
[330932767,1719947436252,-417.16,0.00022465,4]
[330932768,1719947436261,-500.0,0.00022465,4]
[330932769,1719947436270,-500.0,0.00022465,4]
[330932770,1719947436279,-500.0,0.00022465,4]
[330932771,1719947436289,-500.0,0.00022465,4]
[330932772,1719947436298,-500.0,0.00022465,4]
[330932773,1719947436308,-500.0,0.00022465,4]
[330932774,1719947436317,-500.0,0.00022465,4]
[330932775,1719947436326,-500.0,0.00022465,4]
[330932776,1719947436336,-500.0,0.00022465,4]
[330932777,1719947436345,-500.0,0.00022465,4]
[330932778,1719947436354,-500.0,0.00022465,4]
[330932779,1719947436364,-500.0,0.00022465,4]
[330932780,1719947436373,-500.0,0.00022465,4]
[330932781,1719947436382,-500.0,0.00022465,4]
[330932782,1719947436391,-500.0,0.00022465,4]
[330932783,1719947436401,-563.99,0.00022465,4]
[330932784,1719947436411,-198.34,0.00022465,4]
[330932785,1719947436422,-500.0,0.00022465,4]
[330932786,1719947436432,-500.0,0.00022465,4]
[330932787,1719947436442,-500.0,0.00022465,4]
[330932788,1719947436451,-500.0,0.00022465,4]
[330932789,1719947436461,-500.0,0.00022465,4]
[330932790,1719947436470,-500.0,0.00022465,4]
[330932791,1719947436480,-500.0,0.00022465,4]
[330932792,1719947436490,-500.0,0.00022465,4]
[330932793,1719947436500,-500.0,0.00022465,4]
[330932794,1719947436511,-500.0,0.00022465,4]
[330932795,1719947436520,-500.0,0.00022465,4]
[330932796,1719947436530,-500.0,0.00022465,4]
[330932797,1719947436539,-500.0,0.00022465,4]
[330932798,1719947436549,-500.0,0.00022465,4]
[330932799,1719947436559,-500.0,0.00022465,4]
[330932800,1719947436569,-500.0,0.00022465,4]
[330932801,1719947436579,-500.0,0.00022465,4]
[330932802,1719947436588,-500.0,0.00022465,4]
[330932803,1719947436599,-500.0,0.00022465,4]
[330932804,1719947436608,-600.71,0.00022465,4]
[330932805,1719947436617,-500.0,0.00022465,4]
[330932806,1719947436627,-500.0,0.00022465,4]
[330932807,1719947436636,-500.0,0.00022465,4]
[330932808,1719947436646,-500.0,0.00022465,4]
[330932809,1719947436655,-500.0,0.00022465,4]
[330932810,1719947436664,-500.0,0.00022465,4]
[330932811,1719947436673,-500.0,0.00022465,4]
[330932812,1719947436683,-389.63750765,0.00022465,4]
[330932813,1719947436692,-500.0,0.00022465,4]
[330932814,1719947436701,-500.0,0.00022465,4]
[330932815,1719947436710,-500.0,0.00022465,4]
[330932816,1719947436719,-500.0,0.00022465,4]
[330932817,1719947436728,-299.54,0.00022465,4]
[330932818,1719947436738,-434.19212392,0.00022465,4]
[330932819,1719947436748,-500.0,0.00022465,4]
[330932820,1719947436757,-500.0,0.00022465,4]
[330932821,1719947436771,-500.0,0.00022465,4]
[330932822,1719947436780,-500.0,0.00022465,4]
[330932823,1719947436791,-500.0,0.00022465,4]
[330932824,1719947436800,-500.0,0.00022465,4]
[330932825,1719947436810,-243.02,0.00022465,4]
[330932826,1719947436820,-500.0,0.00022465,4]
[330932827,1719947436829,-603.60851865,0.00022465,4]
[330932828,1719947436838,-500.0,0.00022465,4]
[330932829,1719947436848,-500.0,0.00022465,4]
[330932830,1719947436858,-500.0,0.00022465,4]
[330932831,1719947436867,-500.0,0.00022465,4]
[330932832,1719947436877,-500.0,0.00022465,4]
[330932833,1719947436886,-500.0,0.00022465,4]
[330932834,1719947436896,-500.0,0.00022465,4]
[330932835,1719947436905,-500.0,0.00022465,4]
[330932836,1719947436914,-500.0,0.00022465,4]
[330932837,1719947436923,-500.0,0.00022465,4]
[330932838,1719947436932,-500.0,0.00022465,4]
[330932839,1719947436941,-500.0,0.00022465,4]
[330932840,1719947436951,-500.0,0.00022465,4]
[330932841,1719947436960,-500.0,0.00022465,4]
[330932842,1719947436969,-500.0,0.00022465,4]